bitfinex/quotes_ETHUSD_20251125
["timestamp","ask_amount","ask_price","bid_price","bid_amount"]
[1764086170584,4.1744646,2899.5,2899.4,0.0590271]
[1764086170756,4.49583485,2899.5,2899.4,0.0590271]
[1764086171379,5.00123885,2899.5,2899.4,0.0590271]
[1764086171567,4.90133885,2899.5,2899.4,0.5423271]
[1764086172069,4.90133885,2899.5,2899.4,1.0272271]
[1764086172070,4.71783485,2899.5,2899.4,1.0272271]
[1764086172267,5.45939755,2899.5,2899.4,0.5423271]
[1764086172484,5.45939755,2899.5,2899.4,1.0272271]
[1764086172683,4.71783485,2899.5,2899.4,1.0272271]
[1764086173196,1.26896436,2899.5,2899.4,1.0272271]
[1764086173365,0.54337025,2899.5,2899.4,1.0272271]
[1764086173566,0.222,2899.5,2899.4,1.0272271]
[1764086173762,3.99272069,2899.5,2899.4,1.0272271]
[1764086173963,3.99272069,2899.5,2899.4,0.5423271]
[1764086174159,3.99272069,2899.5,2899.4,1.0272271]
[1764086174597,0.3218502,2899.5,2899.4,1.0272271]
[1764086174794,0.3220087,2899.5,2899.4,1.0272271]
[1764086175365,0.3220087,2899.5,2899.4,0.5423271]
[1764086175560,0.3220087,2899.5,2899.4,0.0590271]
[1764086175768,0.3220087,2899.5,2899.4,1.0272271]
[1764086176808,4.4964733,2899.5,2899.4,0.5423271]
[1764086177710,4.4964733,2899.5,2899.4,1.0272271]
[1764086177866,4.4964733,2899.5,2899.4,0.5423271]
[1764086178070,4.4964733,2899.5,2899.4,0.0590271]
[1764086178071,5.23871375,2899.5,2899.4,0.0590271]
[1764086179182,5.23871375,2899.5,2899.4,0.5423271]
[1764086179564,5.37219824,2899.5,2899.4,0.0590271]
[1764086179797,7.14937301,2899.5,2899.4,0.0590271]
[1764086180015,6.18971775,2899.5,2899.4,0.0590271]
[1764086180216,1.13109811,2899.4,2898.6,0.1809]
[1764086180421,2.93979954,2899.3,2898.6,0.6766]
[1764086180589,1.46975315,2899.2,2898.7,0.4957]
[1764086180789,0.72559411,2898.8,2898.7,0.4957]
[1764086180984,0.72559411,2898.8,2897.3,0.72559411]
[1764086180985,1.26960281,2898.8,2897.6,3.4510618]
[1764086181286,0.3220087,2898.7,2898.3,0.4957]
[1764086181716,0.3220087,2898.7,2898.6,0.4567]
[1764086182104,0.3220087,2898.7,2898.6,0.9524]
[1764086182825,0.3220087,2898.7,2898.6,0.4567]
[1764086183118,11.8025738,2898.7,2898.3,0.4957]
[1764086183293,1.04760281,2898.6,2898.3,0.4957]
[1764086183652,0.72559411,2898.6,2898.3,0.4957]
[1764086183989,0.32192921,2898.5,2898.3,0.4957]
[1764086184202,0.2212,2898.4,2898.3,0.4957]
[1764086184591,0.2212,2898.4,2898.3,0.9524]
[1764086184990,4.39697351,2898.4,2898.3,0.9524]
[1764086185222,4.71889446,2898.4,2898.3,0.9524]
[1764086185922,4.71889446,2898.4,2896.1,0.4957]
[1764086185923,5.705,2897.9,2896.1,0.4957]
[1764086186123,0.405504,2897.3,2896.2,0.4957]
[1764086186335,1.13109811,2896.9,2895.9,0.1994]
[1764086186638,0.405504,2896.7,2895.7,0.4957]
[1764086186791,0.405504,2896.5,2895.6,0.1994]
[1764086186990,0.405504,2895.6,2894.6,0.4957]
[1764086187210,0.405504,2895.6,2894.0,0.1994]
[1764086187211,0.54377596,2895.5,2894.9,0.6951]
[1764086187441,0.222,2895.7,2894.9,0.6951]
[1764086187644,0.222,2895.7,2895.4,0.6561]
[1764086187845,0.405504,2895.6,2895.1,0.1994]
[1764086188047,0.405504,2895.4,2894.9,0.1994]
[1764086188346,0.222,2895.3,2894.9,0.1994]
[1764086188545,0.222,2895.3,2895.0,0.4957]
[1764086188845,0.222,2895.3,2895.2,0.6561]
[1764086189030,4.40146762,2895.3,2895.2,0.1994]
[1764086189233,0.94759411,2895.3,2895.2,0.1994]
[1764086189434,0.405504,2895.2,2894.9,0.1994]
[1764086190243,0.12,2895.3,2895.1,0.4567]
[1764086190461,0.12,2895.3,2895.2,0.9524]
[1764086190642,3.45260296,2896.4,2895.2,0.9524]
[1764086190944,0.222,2896.3,2895.4,0.4567]
[1764086191263,0.72559411,2896.2,2894.9,0.1994]
[1764086191555,0.405504,2896.0,2894.9,0.6951]
[1764086191755,0.405504,2895.8,2894.9,0.6951]
[1764086192042,0.5411152,2895.9,2894.9,0.6951]
[1764086192043,0.222,2895.9,2895.0,0.4957]
[1764086192246,0.222,2895.9,2893.8,3.87700368]
[1764086192247,0.2955,2895.9,2894.1,3.45523792]
[1764086192418,0.405504,2895.8,2895.1,0.1994]
[1764086192609,0.405504,2895.8,2895.1,0.6951]
[1764086192814,0.405504,2895.8,2895.1,0.1994]
[1764086193257,0.2955,2895.9,2895.1,0.1994]
[1764086193258,1.13109811,2895.6,2895.1,0.1994]
[1764086193616,0.72559411,2895.6,2895.1,0.1994]
[1764086193818,0.72559411,2895.6,2895.2,0.4957]
[1764086194062,0.405504,2895.5,2894.7,0.4957]
[1764086194345,0.72559411,2895.6,2893.8,0.1994]
[1764086194346,0.222,2895.4,2894.4,0.4957]
[1764086194843,0.405504,2895.3,2894.4,0.4957]
[1764086195045,0.222,2895.4,2895.3,0.6561]
[1764086195248,0.72559411,2895.6,2895.3,0.6561]
[1764086195249,0.72559411,2895.5,2895.3,0.6561]
[1764086195462,0.72559411,2895.5,2895.3,1.1518]
[1764086195613,0.72559411,2895.5,2895.4,0.4567]
[1764086195821,0.72559411,2895.7,2895.4,0.9524]
[1764086196042,3.45327716,2895.8,2895.6,0.4567]
[1764086196043,0.72559411,2895.8,2895.6,0.4567]
[1764086196247,0.72559411,2895.8,2895.3,0.1994]
[1764086196448,0.72559411,2895.8,2895.3,0.6951]
[1764086197016,0.405504,2895.7,2894.9,0.4957]
[1764086197220,6.90703134,2895.6,2895.1,0.1994]
[1764086197446,0.222,2895.5,2895.1,0.1994]
[1764086197753,0.222,2895.5,2895.1,0.6951]
[1764086197941,0.222,2895.5,2895.1,0.1994]
[1764086198253,0.405504,2895.4,2894.5,0.4957]
[1764086199124,0.72559411,2895.0,2894.5,0.4957]
[1764086199444,0.405504,2894.9,2894.0,0.1994]
[1764086199840,0.879704,2894.9,2894.0,0.1994]
[1764086200246,0.405504,2894.8,2894.0,0.1994]
[1764086200633,0.405504,2894.8,2893.8,0.6951]
[1764086200634,0.405504,2894.6,2894.5,0.001]
[1764086200958,0.627504,2894.6,2894.5,0.001]
[1764086201122,5.54430687,2894.6,2894.5,0.001]
[1764086201322,5.07220687,2894.6,2894.5,0.001]
[1764086201522,5.07220687,2894.6,2894.2,0.001]
[1764086201523,0.405504,2894.4,2894.2,0.001]
[1764086201773,1.13109811,2894.2,2893.5,0.20107951]
[1764086202064,0.222,2894.1,2893.5,0.20107951]
[1764086202429,0.222,2894.1,2893.6,0.4957]
[1764086202950,3.65531094,2895.0,2894.0,0.4567]
[1764086203148,0.72559411,2894.7,2894.0,0.4567]
[1764086203457,0.03358449,2894.6,2893.5,0.20107951]
[1764086203633,0.222,2894.5,2893.6,0.4957]
[1764086204026,0.03358449,2894.4,2893.6,0.4957]
[1764086204558,0.405504,2894.3,2893.6,0.4957]
[1764086205125,1.13109811,2894.1,2893.6,0.4957]
[1764086205457,0.222,2894.0,2893.5,0.20107951]
[1764086205959,0.222,2894.0,2893.5,0.69677951]
[1764086206326,0.222,2894.0,2893.6,0.4957]
[1764086206643,0.222,2894.0,2893.9,0.4567]
[1764086207155,0.222,2894.0,2893.9,0.9524]
[1764086207342,3.45369054,2895.5,2893.9,0.9524]
[1764086207343,0.222,2894.5,2893.9,0.9524]
[1764086207547,0.72559411,2894.4,2893.9,0.9524]
[1764086207948,0.72559411,2894.4,2894.0,0.4957]
[1764086208145,0.03278449,2894.3,2894.0,0.4957]
[1764086208322,0.03278449,2894.3,2893.6,0.4957]
[1764086208763,0.405504,2894.3,2893.6,0.4957]
[1764086209245,0.72559411,2894.2,2893.6,0.4957]
[1764086209426,0.222,2894.1,2893.6,0.4957]
[1764086209845,0.222,2894.1,2894.0,0.4567]
[1764086210359,0.222,2894.1,2894.0,0.9081]
[1764086211568,3.45389465,2895.3,2894.0,0.9081]
[1764086211760,2.00287959,2895.2,2894.2,0.4911]
[1764086212060,0.222,2895.2,2895.1,0.4911]
[1764086212266,0.222,2895.2,2895.1,1.1357]
[1764086212563,0.222,2895.6,2895.1,1.1357]
[1764086212863,0.222,2895.8,2895.5,0.4911]
[1764086213159,3.45232341,2896.6,2895.7,0.4911]
[1764086213361,4.73206857,2896.5,2895.7,0.4911]
[1764086213561,1.81595476,2896.4,2895.7,0.4911]
[1764086213762,1.05761362,2896.3,2895.4,0.4514]
[1764086214056,0.405504,2896.1,2895.4,0.4514]
[1764086214358,0.54171705,2896.0,2895.4,0.4514]
[1764086214561,0.31971705,2895.9,2895.4,0.4514]
[1764086215054,0.31971705,2895.9,2895.8,0.4911]
[1764086215427,0.31971705,2895.9,2895.8,0.9425]
[1764086216271,1.06144196,2895.9,2895.8,0.9425]
[1764086216736,0.31971705,2895.9,2895.3,0.4514]
[1764086217076,1.04531116,2895.8,2895.3,0.4514]
[1764086217274,0.31971705,2895.7,2895.3,0.4514]
[1764086217569,0.31971705,2895.6,2895.3,0.4514]
[1764086217779,0.31971705,2895.5,2895.3,3.90524721]
[1764086217930,0.31971705,2895.4,2895.3,3.90524721]
[1764086218127,0.31971705,2895.4,2895.3,3.45384721]
[1764086218352,0.74154149,2896.0,2895.3,3.94494721]
[1764086218583,0.32179617,2895.9,2895.4,0.4514]
[1764086218867,0.32179617,2895.8,2895.4,0.4514]
[1764086219038,0.002,2895.6,2895.4,0.4514]
[1764086219443,0.002,2895.6,2895.5,3.90863495]
[1764086219845,0.002,2895.6,2895.5,4.39773495]
[1764086220269,0.002,2895.6,2895.5,4.49773495]
[1764086220778,0.03278449,2897.0,2895.8,0.1]
[1764086220947,0.03278449,2897.0,2896.4,0.455]
[1764086220948,0.32160263,2896.9,2896.4,0.455]
[1764086221169,0.32160263,2896.8,2896.4,0.455]
[1764086221455,0.32160263,2896.7,2896.5,3.6492426]
[1764086221659,3.48384745,2897.7,2897.1,0.1968]
[1764086221880,1.04693963,2897.6,2896.6,0.9441]
[1764086222159,1.09499729,2897.5,2896.7,0.4891]
[1764086222361,0.32134552,2897.4,2896.6,0.455]
[1764086222531,0.98163401,2897.3,2896.6,0.455]
[1764086222728,0.32134552,2897.2,2896.6,0.455]
[1764086222962,0.32134552,2897.1,2896.6,0.455]
[1764086223163,0.2299,2896.7,2896.2,0.1968]
[1764086223364,0.32134552,2896.6,2896.3,0.4891]
[1764086223632,0.03278449,2896.9,2896.3,0.4891]
[1764086223633,0.72559411,2896.9,2896.3,0.4891]
[1764086223854,0.32084837,2896.8,2896.3,0.4891]
[1764086224130,0.32084837,2896.7,2896.2,0.1968]
[1764086224366,0.405504,2896.7,2896.2,0.1968]
[1764086224547,0.4653917,2896.6,2896.0,0.1968]
[1764086224868,0.3206917,2896.6,2896.0,0.6859]
[1764086225034,0.72559411,2897.2,2896.1,0.4891]
[1764086225231,1.06051493,2897.1,2896.1,0.4891]
[1764086225535,1.04628275,2897.0,2896.1,3.94199006]
[1764086225736,0.32068864,2896.9,2896.1,7.3949095]
[1764086225937,3.48439781,2897.2,2896.2,0.4891]
[1764086226285,0.32052379,2897.1,2896.2,0.4891]
[1764086226580,0.222,2897.3,2896.2,0.4891]
[1764086226747,0.32033974,2897.2,2896.2,0.4891]
[1764086226936,1.07871834,2897.2,2896.2,0.4891]
[1764086227138,3.67349546,2897.3,2896.2,0.4891]
[1764086227139,0.222,2897.3,2896.2,0.4891]
[1764086227364,0.03278449,2897.2,2896.2,0.4891]
[1764086227677,0.03278449,2897.2,2896.3,6.905362]
[1764086227858,0.222,2897.3,2896.3,6.905362]
[1764086227859,4.17673014,2897.6,2896.3,6.905362]
[1764086228068,0.32014889,2897.5,2897.1,0.6518]
[1764086228238,0.1292,2898.2,2897.4,0.455]
[1764086228441,1.85208348,2898.8,2898.1,0.6518]
[1764086228442,0.737531,2898.3,2898.1,0.6518]
[1764086228639,0.03278449,2898.7,2898.2,0.455]
[1764086228970,0.03278449,2898.7,2897.1,0.1968]
[1764086228971,1.54222612,2898.7,2897.7,0.4891]
[1764086229271,0.31984752,2898.6,2897.9,0.1968]
[1764086229764,0.222,2898.8,2898.5,0.455]
[1764086229975,0.222,2898.8,2898.7,0.455]
[1764086230137,0.222,2898.8,2898.7,0.9441]
[1764086230337,3.48377388,2899.5,2898.7,0.9441]
[1764086230634,1.50863118,2899.4,2898.2,0.4891]
[1764086230848,1.22132556,2899.3,2898.2,0.4891]
[1764086231048,0.405504,2899.1,2897.9,0.1968]
[1764086231247,0.405504,2898.2,2897.4,0.1968]
[1764086231439,0.72559411,2898.1,2897.5,0.4891]
[1764086231855,0.03278449,2898.0,2897.4,0.1968]
[1764086232060,0.72559411,2898.1,2897.4,0.1968]
[1764086232378,0.03198449,2898.0,2897.4,0.1968]
[1764086233160,0.03198449,2898.0,2897.5,0.4891]
[1764086233360,0.72559411,2898.1,2897.5,0.4891]
[1764086233571,0.222,2898.3,2898.0,0.455]
[1764086233944,3.67231545,2898.3,2897.6,0.4891]
[1764086234179,7.33832349,2898.2,2897.4,0.1968]
[1764086234360,0.72559411,2898.1,2897.4,0.1968]
[1764086234562,0.7575786,2898.1,2897.4,0.6859]
[1764086235276,0.43748849,2898.0,2897.1,0.1968]
[1764086235457,0.72559411,2897.8,2897.1,0.6859]
[1764086235654,0.222,2897.7,2897.1,0.6859]
[1764086235977,0.222,2897.7,2897.2,0.4891]
[1764086236341,0.25398449,2897.7,2897.1,0.1968]
[1764086236544,0.869504,2897.6,2896.0,0.1968]
[1764086236777,0.0852,2897.2,2896.1,3.942018]
[1764086236944,0.3072,2897.2,2896.2,0.4891]
[1764086237560,0.03198449,2897.7,2897.1,0.6518]
[1764086237775,0.72559411,2897.6,2897.1,0.6518]
[1764086238477,0.224,2897.7,2897.2,0.4891]
[1764086238663,0.002,2897.7,2897.6,0.455]
[1764086238979,0.002,2897.7,2897.6,0.9441]
[1764086239550,0.002,2897.7,2897.6,4.39523197]
[1764086239745,0.002,2897.7,2897.6,0.455]
[1764086240461,0.002,2897.7,2897.6,0.9283]
[1764086240661,0.002,2897.7,2897.6,4.37943197]
[1764086241783,0.002,2897.7,2897.2,0.4733]
[1764086241951,0.002,2897.7,2897.3,0.4733]
[1764086242347,0.002,2897.7,2897.1,0.1968]
[1764086242545,0.002,2897.7,2897.2,0.4733]
[1764086243187,0.002,2897.7,2897.6,0.4619]
[1764086243483,0.002,2897.7,2897.6,0.9352]
[1764086243992,0.002,2897.7,2897.6,4.38633197]
[1764086244550,0.002,2897.7,2897.6,4.48633197]
[1764086244756,0.002,2897.7,2897.6,4.38633197]
[1764086245698,0.002,2897.7,2897.6,0.4619]
[1764086245851,0.002,2897.7,2897.6,4.38633197]
[1764086246047,0.002,2897.7,2897.6,0.9352]
[1764086246459,0.4839,2897.7,2897.1,0.1968]
[1764086246660,0.32125684,2897.6,2897.1,0.1968]
[1764086247287,0.32125684,2897.6,2897.2,0.4733]
[1764086247471,0.32125684,2897.5,2897.2,0.4733]
[1764086247677,0.72759411,2897.7,2897.4,0.4619]
[1764086247877,0.32168998,2897.6,2897.4,0.9352]
[1764086248188,0.002,2897.7,2897.6,0.4619]
[1764086248575,0.002,2897.7,2897.6,0.9352]
[1764086248778,0.32370777,2897.7,2897.6,0.4619]
[1764086248985,0.002,2897.7,2897.6,0.4619]
[1764086249363,0.32370777,2897.7,2897.6,0.4619]
[1764086249553,0.32421923,2897.7,2897.6,0.4619]
[1764086249974,0.002,2897.7,2897.6,0.9352]
[1764086250386,0.002,2897.7,2897.6,4.38633197]
[1764086250558,0.002,2897.7,2897.6,0.9352]
[1764086250890,0.002,2897.7,2897.6,0.4619]
[1764086251074,0.002,2897.7,2897.6,0.9352]
[1764086251385,0.002,2897.7,2897.6,0.4619]
[1764086251889,0.002,2897.7,2897.3,0.4733]
[1764086252092,0.32219163,2897.6,2897.3,0.4733]
[1764086252257,0.32219163,2897.5,2897.1,0.1968]
[1764086252462,0.002,2897.7,2897.1,0.1968]
[1764086252669,0.32230327,2897.6,2897.1,0.1968]
[1764086252881,0.002,2897.7,2897.1,0.1968]
[1764086252882,0.32230327,2897.5,2897.1,0.1968]
[1764086253195,0.32230327,2897.4,2896.6,0.4733]
[1764086253489,0.32230327,2897.3,2896.6,0.4733]
[1764086253677,0.32230327,2897.2,2896.7,3.45220423]
[1764086253865,0.32245688,2897.1,2896.6,3.92562216]
[1764086254077,0.72559411,2897.6,2896.6,3.92562216]
[1764086254281,1.0657016,2897.5,2897.0,0.4619]
[1764086254491,0.32245998,2897.4,2897.0,0.4619]
[1764086254688,0.32245998,2897.3,2897.1,0.1939]
[1764086254990,0.32245998,2897.2,2897.1,0.1939]
[1764086255693,0.32245998,2897.2,2896.5,0.6953]
[1764086255857,0.32245998,2897.1,2896.5,0.4733]
[1764086256196,0.32165998,2897.0,2896.4,3.45249954]
[1764086256356,1.20629411,2897.1,2897.0,0.001]
[1764086256557,3.1002048,2897.1,2897.0,0.001]
[1764086256761,0.96582616,2897.1,2897.0,0.001]
[1764086257590,2.32858348,2897.6,2897.0,0.001]
[1764086257591,0.92808453,2897.6,2897.0,0.9362]
[1764086257760,3.45303205,2897.7,2897.2,0.4619]
[1764086257961,0.74355438,2897.6,2897.2,0.4619]
[1764086258283,0.74355438,2897.6,2897.2,0.9352]
[1764086258481,0.002,2897.7,2897.2,0.4619]
[1764086258682,0.002,2897.7,2897.3,0.4733]
[1764086258880,0.002,2897.7,2897.2,0.4619]
[1764086259183,0.74562951,2897.7,2897.2,4.38679165]
[1764086259387,0.002,2897.7,2897.2,4.38679165]
[1764086259991,0.002,2897.7,2897.3,0.4733]
[1764086260191,0.002,2897.7,2897.6,0.4619]
[1764086260366,0.002,2897.7,2897.3,0.4733]
[1764086261376,0.74561463,2897.7,2897.3,0.4733]
[1764086261576,0.002,2897.7,2897.3,0.4733]
[1764086261874,0.002,2897.7,2897.6,3.91303197]
[1764086262288,0.002,2897.7,2897.6,4.48633197]
[1764086262496,0.002,2897.7,2897.6,4.60833197]
[1764086262698,0.002,2897.7,2897.6,4.70833197]
[1764086263393,0.002,2897.7,2897.6,4.48633197]
[1764086263575,0.002,2897.7,2897.6,4.38633197]
[1764086263778,0.002,2897.7,2897.6,4.60833197]
[1764086264472,0.002,2897.7,2897.6,0.9352]
[1764086264678,0.002,2897.7,2897.6,4.38633197]
[1764086266006,0.002,2897.7,2897.6,4.60833197]
[1764086266972,0.002,2897.7,2897.1,0.6672]
[1764086267174,0.002,2897.7,2897.0,0.001]
[1764086267175,0.4827,2897.7,2897.0,0.001]
[1764086267384,0.0686,2897.1,2897.0,0.001]
[1764086267615,0.5451,2897.1,2897.0,0.001]
[1764086267999,3.99682758,2897.1,2897.0,0.001]
[1764086268181,4.31962835,2897.1,2897.0,0.001]
[1764086268382,0.39140077,2897.1,2897.0,0.001]
[1764086268583,0.0686,2897.1,2897.0,0.001]
[1764086268789,0.39140077,2897.1,2897.0,0.001]
[1764086269307,3.45137195,2897.4,2897.0,0.001]
[1764086269308,0.32280077,2897.2,2897.0,0.001]
[1764086269609,0.32272327,2897.1,2897.0,0.001]
[1764086269811,1.06627775,2897.4,2897.0,0.001]
[1764086270033,0.4819,2897.1,2897.0,0.001]
[1764086270190,0.80462327,2897.1,2897.0,0.001]
[1764086271392,0.32272327,2897.1,2897.0,0.001]
[1764086271592,0.40952327,2897.1,2897.0,0.001]
[1764086271990,0.0868,2897.1,2897.0,0.001]
[1764086272186,0.40952327,2897.1,2897.0,0.001]
[1764086272590,0.32272327,2897.1,2897.0,0.001]
[1764086272815,0.32272327,2897.2,2897.0,0.001]
[1764086273587,0.72559411,2897.1,2897.0,0.001]
[1764086273822,4.80884496,2897.1,2897.0,0.001]
[1764086274137,1.27031738,2897.1,2897.0,0.001]
[1764086274293,4.72204496,2897.1,2897.0,0.001]
[1764086274620,1.27031738,2897.1,2897.0,0.001]
[1764086275323,0.32272327,2897.1,2897.0,0.9674]
[1764086275492,0.94759411,2897.5,2897.0,0.9674]
[1764086275687,0.32244072,2897.4,2897.1,0.1951]
[1764086276103,1.04803483,2897.4,2897.0,0.001]
[1764086276422,0.32244072,2897.3,2897.0,0.001]
[1764086276621,0.32244072,2897.2,2897.0,0.001]
[1764086276823,0.72759411,2897.4,2897.0,0.001]
[1764086277125,0.32247152,2897.3,2897.0,0.001]
[1764086277423,0.002,2897.4,2897.1,0.1951]
[1764086277634,1.05004629,2897.4,2897.0,0.001]
[1764086277836,0.32245218,2897.3,2897.0,0.001]
[1764086278935,0.002,2897.4,2897.2,0.456]
[1764086279236,0.002,2897.4,2897.3,0.456]
[1764086279624,0.002,2897.4,2897.3,0.9517]
[1764086279831,0.002,2897.4,2897.3,0.456]
[1764086280153,0.002,2897.4,2897.3,4.40318931]
[1764086280348,0.0012,2897.4,2897.3,4.40318931]
[1764086282411,0.0012,2897.4,2897.1,0.1854]
[1764086282935,0.0012,2897.4,2897.0,3.45282403]
[1764086283304,0.0012,2897.4,2897.1,0.1854]
[1764086283500,0.0012,2897.4,2897.1,0.6811]
[1764086283936,0.0012,2897.4,2897.0,0.001]
[1764086284239,0.0012,2897.4,2897.3,0.456]
[1764086284425,0.0012,2897.4,2897.3,0.9517]
[1764086285436,0.0012,2897.4,2897.3,1.2737]
[1764086285948,0.0012,2897.4,2897.3,4.72518931]
[1764086286150,0.0012,2897.4,2897.3,5.13069331]
[1764086286520,0.002,2898.0,2897.6,0.456]
[1764086286719,0.002,2899.5,2898.1,0.405504]
[1764086286922,0.002,2899.5,2898.6,0.1]
[1764086287254,0.002,2899.5,2898.7,0.222]
[1764086287618,0.002,2899.5,2898.8,0.5957]
[1764086288054,0.002,2899.5,2899.4,4.09038944]
[1764086288639,0.002,2899.5,2899.4,4.58608944]
[1764086289029,0.002,2899.8,2899.5,0.405504]
[1764086289335,0.002,2900.2,2900.1,0.505504]
[1764086289657,0.002,2900.2,2900.1,0.961504]
[1764086289857,0.002,2900.2,2900.1,1.2737]
[1764086290153,0.002,2900.2,2900.1,4.72185696]
[1764086290653,0.002,2900.2,2900.1,5.85295507]
[1764086290872,0.002,2900.2,2900.1,10.59739007]
[1764086291036,0.002,2900.2,2900.1,8.79889007]
[1764086291354,0.002,2900.2,2900.1,5.85295507]
[1764086291657,0.002,2900.2,2900.1,8.81939307]
[1764086291870,0.002,2900.2,2900.1,8.59739307]
[1764086292027,0.002,2900.2,2900.1,8.81939307]
[1764086292628,0.002,2901.3,2900.4,0.82559411]
[1764086292862,0.002,2901.3,2900.4,5.8410535]
[1764086293162,0.002,2901.3,2900.4,6.0630535]
[1764086293756,0.002,2901.3,2900.4,6.4685575]
[1764086294150,0.002,2901.3,2900.4,9.9163578]
[1764086294861,0.002,2900.8,2900.4,9.9163578]
[1764086295375,0.002,2900.8,2900.4,15.2615318]
[1764086295865,0.002,2900.8,2900.4,13.0502858]
[1764086296057,0.002,2900.8,2900.5,0.405504]
[1764086296279,0.002,2900.8,2900.7,5.13454183]
[1764086296487,0.002,2901.1,2900.7,12.02942927]
[1764086296780,0.002,2901.6,2901.5,0.405504]
[1764086296943,0.002,2901.6,2901.5,5.9728575]
[1764086297148,0.002,2901.6,2901.5,6.4685575]
[1764086297777,0.002,2901.6,2901.5,6.2465575]
[1764086297936,0.002,2901.6,2901.5,2.40479811]
[1764086298334,0.002,2901.6,2901.5,5.8512913]
[1764086298974,0.002,2901.6,2901.5,11.8504273]
[1764086299365,0.002,2901.6,2901.5,9.8741863]
[1764086299668,0.002,2901.6,2901.5,8.8375393]
[1764086299838,0.002,2901.6,2901.5,8.1895393]
[1764086300036,0.002,2901.6,2901.5,7.9675393]
[1764086300244,0.002,2901.6,2901.5,7.24194519]
[1764086300442,0.002,2901.6,2901.5,5.12469719]
[1764086300638,0.002,2901.6,2901.5,4.90369719]
[1764086300857,0.002,2901.6,2901.5,5.12469719]
[1764086301469,0.002,2901.6,2901.5,4.90369719]
[1764086301652,0.002,2901.6,2901.5,5.12469719]
[1764086301841,0.002,2901.6,2901.5,5.02469719]
[1764086302042,0.002,2901.6,2901.5,4.52899719]
[1764086302274,0.002,2901.6,2901.5,3.90249319]
[1764086302572,0.002,2901.6,2901.4,3.44655596]
[1764086302774,0.0954,2901.5,2901.0,0.1]
[1764086302972,0.4557,2901.6,2900.9,6.89441206]
[1764086303139,0.4537,2901.5,2901.0,0.221]
[1764086303547,0.0954,2901.1,2900.4,3.5478003]
[1764086303740,0.0954,2901.1,2900.1,0.4618]
[1764086303741,0.1419,2901.0,2900.1,6.89631392]
[1764086304080,0.4537,2901.5,2900.1,6.89631392]
[1764086304081,0.1419,2901.4,2900.6,0.1]
[1764086304268,0.1411,2901.4,2900.6,0.321]
[1764086304576,0.1411,2901.4,2900.7,6.89488744]
[1764086304776,0.1411,2901.4,2900.7,10.56333116]
[1764086305581,0.1411,2901.4,2900.8,0.1]
[1764086305948,0.1411,2901.4,2900.9,0.221]
[1764086306347,0.4537,2901.3,2900.7,3.44744372]
[1764086306554,0.4537,2901.3,2900.7,7.11588744]
[1764086306972,0.4537,2901.3,2900.7,3.66844372]
[1764086307370,0.4537,2901.3,2900.7,7.11588744]
[1764086307594,0.2373,2900.8,2900.3,6.89583836]
[1764086307798,0.2373,2900.8,2900.2,1.18739411]
[1764086307799,0.1419,2900.8,2900.2,0.1]
[1764086307967,0.0954,2900.3,2899.2,0.4102]
[1764086308164,0.001,2899.5,2898.8,6.99940664]
[1764086308393,0.405504,2900.6,2898.9,0.221]
[1764086308394,0.859204,2900.6,2898.9,0.221]
[1764086308692,0.72559411,2900.3,2899.2,6.89845474]
[1764086309191,0.72559411,2900.3,2898.8,0.4618]
[1764086309192,0.2618,2899.3,2898.8,3.44970332]
[1764086309392,0.2618,2899.3,2898.9,0.221]
[1764086309592,0.2618,2899.3,2898.8,3.44970332]
[1764086309798,0.2618,2899.3,2898.8,7.12040664]
[1764086310095,0.4501,2899.2,2898.5,0.221]
[1764086310665,0.4501,2899.2,2898.6,6.8998827]
[1764086311007,0.1664,2899.3,2898.6,6.9998827]
[1764086311800,0.1664,2899.3,2898.6,10.44982405]
[1764086311967,0.1664,2899.6,2898.7,0.03449822]
[1764086312173,0.1664,2899.6,2898.9,0.1]
[1764086312480,0.1664,2899.6,2898.9,0.321]
[1764086312887,0.1664,2899.6,2899.0,6.89893066]
[1764086313294,0.1664,2899.6,2899.1,0.1892]
[1764086313599,0.1664,2899.9,2899.2,0.1]
[1764086313895,0.1664,2899.9,2899.3,0.1]
[1764086314287,0.1664,2899.9,2899.3,0.321]
[1764086314677,0.4537,2900.7,2899.5,0.1]
[1764086314881,0.4537,2900.6,2899.5,10.34661147]
[1764086315081,0.4537,2900.6,2899.5,6.89774098]
[1764086315283,0.4537,2900.6,2899.6,0.321]
[1764086316171,0.4537,2900.6,2899.5,6.89774098]
[1764086316519,0.1664,2899.6,2899.5,3.44887049]
[1764086316872,0.617,2899.6,2898.8,0.1]
[1764086317177,0.1664,2899.6,2899.1,0.1]
[1764086317377,0.1664,2899.6,2899.1,0.2892]
[1764086317595,0.4537,2900.4,2899.1,0.751]
[1764086317904,0.77354158,2900.3,2899.3,0.1]
[1764086318111,0.4537,2900.3,2899.3,0.1]
[1764086318283,0.4537,2900.3,2899.6,0.1]
[1764086318486,1.17929411,2900.3,2899.3,0.7828]
[1764086318698,0.35185717,2900.2,2899.2,0.221]
[1764086318901,1.49916679,2900.2,2899.2,6.89845474]
[1764086319205,0.72559411,2900.1,2899.2,6.89845474]
[1764086319423,0.4537,2900.1,2899.2,10.34768211]
[1764086319720,0.4537,2900.0,2899.2,6.89845474]
[1764086320075,0.1664,2899.9,2899.2,6.89845474]
[1764086320275,0.0954,2899.3,2898.7,10.44946699]
[1764086320505,0.0954,2899.3,2898.7,6.89964466]
[1764086320674,0.0954,2899.3,2898.7,10.34946699]
[1764086320876,0.0954,2899.3,2898.7,10.44946699]
[1764086321302,1.17929411,2899.8,2898.7,10.44946699]